fUSD/lending_fUSD_20241107
["ID","MTS","AMOUNT","RATE_DAILY","PERIOD"]
[341581485,1731007184394,-525.0,0.00027385,2]
[341581486,1731007184420,-313.21,0.00027387,2]
[341581487,1731007184440,-200.0,0.00027397,7]
[341581488,1731007184461,-23900.0,0.00027465,2]
[341581489,1731007184482,-155.83,0.0002756,2]
[341581490,1731007184503,-2110.0,0.00027585,2]
[341581491,1731007184523,-1000.0,0.00027621,2]
[341581492,1731007184544,-640.0,0.0002768,2]
[341581493,1731007184566,-2237.9,0.00027746,2]
[341581494,1731007184586,-986.6952,0.0002784,2]
[341581495,1731007184608,-199.95259936,0.00027841,2]
[341581496,1731007184631,-945.5044,0.00027841,2]
[341581497,1731007184654,-1369.2926,0.00027842,2]
[341581498,1731007184686,-768.28,0.0002793,3]
[341581499,1731007184709,-269.99,0.0002793,10]
[341581500,1731007184731,-224.99,0.0002793,10]
[341581501,1731007184751,-1987.95285852,0.00027939,2]
[341581502,1731007184771,-500.0,0.00027939,2]
[341581503,1731007184793,-386.68368483,0.00027939,2]
[341581504,1731007184813,-354.40383548,0.00027939,2]
[341581505,1731007184834,-500.0,0.00027939,2]
[341581506,1731007184995,-630.00227075,0.00027939,2]
[341581507,1731007185077,-500.0,0.0002794,2]
[341581508,1731007185098,-500.0,0.0002794,2]
[341581509,1731007185119,-500.0,0.0002794,2]
[341581510,1731007185140,-500.0,0.0002794,2]
[341581511,1731007185164,-500.0,0.0002794,2]
[341581512,1731007185185,-886.63,0.0002794,2]
[341581513,1731007185205,-500.0,0.0002794,2]
[341581514,1731007185226,-500.0,0.0002794,2]
[341581515,1731007185247,-642.5282489,0.0002794,2]
[341581516,1731007185268,-500.0,0.0002794,2]
[341581517,1731007185288,-847.91,0.0002794,2]
[341581518,1731007185309,-794.91,0.0002794,2]
[341581519,1731007185331,-596.39,0.0002794,2]
[341581520,1731007185352,-500.0,0.0002794,2]
[341581521,1731007185372,-500.0,0.0002794,2]
[341581522,1731007185394,-500.0,0.0002794,2]
[341581523,1731007185419,-500.0,0.0002794,2]
[341581524,1731007185439,-239.54570196,0.0002794,2]
[341581525,1731007185459,-174.10719808,0.0002794,2]
[341581526,1731007185481,-500.0,0.0002794,2]
[341581527,1731007185503,-500.0,0.0002794,2]
[341581528,1731007185525,-500.0,0.0002794,2]
[341581529,1731007185546,-500.0,0.0002794,2]
[341581530,1731007185567,-500.0,0.0002794,2]
[341581531,1731007185590,-500.0,0.0002794,2]
[341581532,1731007185611,-500.0,0.0002794,2]
[341581533,1731007185633,-500.0,0.0002794,2]
[341581534,1731007185658,-500.0,0.0002794,2]
[341581535,1731007185680,-500.0,0.0002794,2]
[341581536,1731007185706,-609.57401344,0.0002794,2]
[341581537,1731007185727,-500.0,0.0002794,2]
[341581538,1731007185749,-540.27,0.0002794,2]
[341581539,1731007185771,-500.0,0.0002794,2]
[341581540,1731007185794,-500.0,0.0002794,2]
[341581541,1731007185816,-500.0,0.0002794,2]
[341581542,1731007185838,-500.0,0.0002794,2]
[341581543,1731007185860,-500.0,0.0002794,2]
[341581544,1731007185882,-500.0,0.0002794,2]
[341581545,1731007185905,-917.69,0.0002794,2]
[341581546,1731007185929,-500.0,0.0002794,2]
[341581547,1731007185949,-500.0,0.0002794,2]
[341581548,1731007185969,-500.63831415,0.0002794,2]
[341581549,1731007185991,-500.0,0.0002794,2]
[341581550,1731007186012,-169.3003645,0.0002794,2]
[341581551,1731007186033,-517.10730351,0.0002794,2]
[341581552,1731007186054,-500.0,0.0002794,2]
[341581553,1731007186074,-860.3,0.0002794,2]
[341581554,1731007186093,-1776.41,0.0002794,2]
[341581555,1731007186113,-500.0,0.0002794,2]
[341581556,1731007186132,-500.0,0.0002794,2]
[341581557,1731007186152,-500.0,0.0002794,2]
[341581558,1731007186176,-500.0,0.0002794,2]
[341581559,1731007186196,-500.0,0.0002794,2]
[341581560,1731007186216,-500.0,0.0002794,2]
[341581561,1731007186235,-581.64892562,0.0002794,2]
[341581562,1731007186255,-500.0,0.0002794,2]
[341581563,1731007186276,-962.48,0.0002794,2]
[341581564,1731007186296,-500.0,0.0002794,2]
[341581565,1731007186316,-581.88,0.0002794,2]
[341581566,1731007186342,-1581.73,0.0002794,2]
[341581567,1731007186364,-500.0,0.0002794,2]
[341581568,1731007186385,-523.6918639,0.0002794,2]
[341581569,1731007186405,-500.0,0.0002794,2]
[341581570,1731007186428,-616.23522151,0.0002794,2]
[341581571,1731007186448,-500.0,0.0002794,2]
[341581572,1731007186469,-500.0,0.0002794,2]
[341581573,1731007186490,-500.0,0.0002794,2]
[341581574,1731007186510,-500.0,0.0002794,2]
[341581575,1731007186532,-2472.14,0.0002794,2]
[341581576,1731007186553,-500.0,0.0002794,2]
[341581577,1731007186573,-1000.27,0.0002794,2]
[341581578,1731007186594,-500.0,0.0002794,2]
[341581579,1731007186615,-500.0,0.0002794,2]
[341581580,1731007186637,-500.0,0.0002794,2]
[341581581,1731007186663,-500.0,0.0002794,2]
[341581582,1731007186687,-500.0,0.0002794,2]
[341581583,1731007186711,-500.0,0.0002794,2]
[341581584,1731007186736,-514.93,0.0002794,2]
[341581585,1731007186758,-4501.19,0.0002794,2]
[341581586,1731007186780,-500.0,0.0002794,2]
[341581587,1731007186804,-608.51,0.0002794,2]
[341581588,1731007186826,-500.0,0.0002794,2]
[341581589,1731007186847,-500.0,0.0002794,2]
[341581590,1731007186868,-500.0,0.0002794,2]
[341581591,1731007186896,-1007.74,0.0002794,2]
[341581592,1731007186921,-500.0,0.0002794,2]
[341581593,1731007186943,-500.0,0.0002794,2]
[341581594,1731007186964,-500.0,0.0002794,2]
[341581595,1731007186986,-907.87,0.0002794,2]
[341581596,1731007187007,-500.0,0.0002794,2]
[341581597,1731007187028,-500.0,0.0002794,2]
[341581598,1731007187050,-500.0,0.0002794,2]
[341581599,1731007187071,-909.65,0.0002794,2]
[341581600,1731007187093,-4972.6,0.0002794,2]
[341581601,1731007187114,-614.57,0.0002794,2]
[341581602,1731007187135,-532.3,0.0002794,2]
[341581603,1731007187156,-500.0,0.0002794,2]
[341581604,1731007187180,-500.0,0.0002794,2]
[341581605,1731007187201,-341.38619695,0.0002794,2]
[341581606,1731007187221,-500.0,0.0002794,2]
[341581607,1731007187243,-500.0,0.0002794,2]
[341581608,1731007187264,-500.0,0.0002794,2]
[341581609,1731007187285,-3507.2,0.0002794,2]
[341581610,1731007187306,-500.0,0.0002794,2]
[341581611,1731007187327,-1052.21,0.0002794,2]
[341581612,1731007187348,-500.0,0.0002794,2]
[341581613,1731007187369,-500.0,0.0002794,2]
[341581614,1731007187390,-920.57,0.0002794,2]
[341581615,1731007187413,-500.0,0.0002794,2]
[341581616,1731007187435,-500.0,0.0002794,2]
[341581617,1731007187456,-709.97,0.0002794,2]
[341581618,1731007187477,-500.0,0.0002794,2]
[341581619,1731007187498,-1637.99,0.0002794,2]
[341581620,1731007187519,-1494.19,0.0002794,2]
[341581621,1731007187541,-500.0,0.0002794,2]
[341581622,1731007187562,-658.89,0.0002794,2]
[341581623,1731007187952,-500.0,0.0002794,2]
[341581624,1731007187973,-530.62,0.0002794,2]
[341581625,1731007187993,-500.0,0.0002794,2]
[341581626,1731007188014,-503.62390873,0.0002794,2]
[341581627,1731007188035,-1791.36,0.0002794,2]
[341581628,1731007188057,-1145.98,0.0002794,2]
[341581629,1731007188079,-500.0,0.0002794,2]
[341581630,1731007188102,-3562.55,0.0002794,2]
[341581631,1731007188123,-500.0,0.0002794,2]
[341581632,1731007188144,-500.0,0.0002794,2]
[341581633,1731007188170,-500.0,0.0002794,2]
[341581634,1731007188192,-627.54,0.0002794,2]
[341581635,1731007188215,-1979.05,0.0002794,2]
[341581636,1731007188237,-677.82,0.0002794,2]
[341581637,1731007188261,-1186.51,0.0002794,2]
[341581638,1731007188284,-500.0,0.0002794,2]
[341581639,1731007188306,-1389.85,0.0002794,2]
[341581640,1731007188328,-536.77179009,0.0002794,2]
[341581641,1731007188351,-513.85,0.0002794,2]
[341581642,1731007188372,-500.0,0.0002794,2]
[341581643,1731007188392,-500.0,0.0002794,2]
[341581644,1731007188416,-2172.31,0.0002794,2]
[341581645,1731007188438,-567.98,0.0002794,2]
[341581646,1731007188460,-500.0,0.0002794,2]
[341581647,1731007188482,-500.0,0.0002794,2]
[341581648,1731007188504,-651.46,0.0002794,2]
[341581649,1731007188524,-500.0,0.0002794,2]
[341581650,1731007188546,-485.96523446,0.0002794,2]
[341581651,1731007188568,-500.0,0.0002794,2]
[341581652,1731007188589,-500.0,0.0002794,2]
[341581653,1731007188610,-500.0,0.0002794,2]
[341581654,1731007188631,-500.0,0.0002794,2]
[341581655,1731007188652,-500.0,0.0002794,2]
[341581656,1731007188677,-620.38,0.0002794,2]
[341581657,1731007188701,-890.16,0.0002794,2]
[341581658,1731007188727,-500.0,0.0002794,2]
[341581659,1731007188750,-501.79908615,0.0002794,2]
[341581660,1731007188774,-521.71,0.0002794,2]
[341581661,1731007188802,-495.62312712,0.0002794,2]
[341581662,1731007188826,-500.0,0.0002794,2]
[341581663,1731007188849,-500.0,0.0002794,2]
[341581664,1731007188872,-500.0,0.0002794,2]
[341581665,1731007188896,-500.0,0.0002794,2]
[341581666,1731007188919,-500.0,0.0002794,2]
[341581667,1731007188941,-500.0,0.0002794,2]
[341581668,1731007188962,-500.0,0.0002794,2]
[341581669,1731007188984,-1163.7,0.0002794,2]
[341581670,1731007189005,-500.0,0.0002794,2]
[341581671,1731007189026,-500.0,0.0002794,2]
[341581672,1731007189048,-500.0,0.0002794,2]
[341581673,1731007189070,-877.9,0.0002794,2]
[341581674,1731007189091,-567.5,0.0002794,2]
[341581675,1731007189116,-500.0,0.0002794,2]
[341581676,1731007189140,-500.0,0.0002794,2]
[341581677,1731007189165,-500.0,0.0002794,2]
[341581678,1731007189190,-530.75,0.0002794,2]
[341581679,1731007189213,-500.0,0.0002794,2]
[341581680,1731007189236,-500.0,0.0002794,2]
[341581681,1731007189259,-500.0,0.0002794,2]
[341581682,1731007189281,-1128.39,0.0002794,2]
[341581683,1731007189302,-500.0,0.0002794,2]
[341581684,1731007189325,-1006.83,0.0002794,2]
[341581685,1731007189348,-500.0,0.0002794,2]
[341581686,1731007189371,-500.0,0.0002794,2]
[341581687,1731007189392,-500.0,0.0002794,2]
[341581688,1731007189415,-500.0,0.0002794,2]
[341581689,1731007189437,-567.86,0.0002794,2]
[341581690,1731007189459,-500.0,0.0002794,2]
[341581691,1731007189481,-3192.12,0.0002794,2]
[341581692,1731007189503,-500.0,0.0002794,2]
[341581693,1731007189524,-500.0,0.0002794,2]
[341581694,1731007189545,-795.4,0.0002794,2]
[341581695,1731007189567,-500.0,0.0002794,2]
[341581696,1731007189590,-915.12,0.0002794,2]
[341581697,1731007189613,-500.0,0.0002794,2]
[341581698,1731007189635,-960.31,0.0002794,2]
[341581699,1731007189657,-500.0,0.0002794,2]
[341581700,1731007189687,-1397.33,0.0002794,2]
[341581701,1731007189714,-7925.57,0.0002794,2]
[341581702,1731007189740,-500.0,0.0002794,2]
[341581703,1731007189763,-500.0,0.0002794,2]
[341581704,1731007189785,-500.0,0.0002794,2]
[341581705,1731007189809,-500.0,0.0002794,2]
[341581706,1731007189832,-2234.63,0.0002794,2]
[341581707,1731007189854,-506.67646793,0.0002794,2]
[341581708,1731007189876,-871.77,0.0002794,2]
[341581709,1731007189901,-200.0,0.0002794,2]
[341581710,1731007189929,-500.0,0.0002794,2]
[341581711,1731007189950,-500.0,0.0002794,2]
[341581712,1731007189972,-570.69,0.0002794,2]
[341581713,1731007189993,-860.45,0.0002794,2]
[341581714,1731007190015,-364.41096854,0.0002794,2]
[341581715,1731007190037,-500.0,0.0002794,2]
[341581716,1731007190058,-1161.33,0.0002794,2]
[341581717,1731007190078,-500.0,0.0002794,2]
[341581718,1731007190099,-500.0,0.0002794,2]
[341581719,1731007190188,-500.0,0.0002794,2]
[341581720,1731007190209,-1550.91,0.0002794,2]
[341581721,1731007190230,-500.0,0.0002794,2]
[341581722,1731007190251,-736.18,0.0002794,2]
[341581723,1731007190271,-692.77,0.0002794,2]
[341581724,1731007190292,-190.95971047,0.0002794,2]
[341581725,1731007190312,-500.0,0.0002794,2]
[341581726,1731007190332,-500.0,0.0002794,2]
[341581727,1731007190352,-500.0,0.0002794,2]
[341581728,1731007190372,-500.0,0.0002794,2]
[341581729,1731007190393,-2236.12,0.0002794,2]
[341581730,1731007190416,-234.773167,0.0002794,2]
[341581731,1731007190436,-521.76,0.0002794,2]
[341581732,1731007190455,-500.0,0.0002794,2]
[341581733,1731007190475,-500.0,0.0002794,2]
[341581734,1731007190495,-500.0,0.0002794,2]
[341581735,1731007190515,-500.0,0.0002794,2]
[341581736,1731007190535,-500.0,0.0002794,2]
[341581737,1731007190555,-500.0,0.0002794,2]
[341581738,1731007190575,-2233.18,0.0002794,2]
[341581739,1731007190597,-2161.78,0.0002794,2]
[341581740,1731007190616,-500.0,0.0002794,2]
[341581741,1731007190636,-500.0,0.0002794,2]
[341581742,1731007190657,-500.0,0.0002794,2]
[341581743,1731007190680,-500.0,0.0002794,2]
[341581744,1731007190704,-1276.4,0.0002794,2]
[341581745,1731007190727,-500.0,0.0002794,2]
[341581746,1731007190747,-500.0,0.0002794,2]
[341581747,1731007190769,-535.83,0.0002794,2]
[341581748,1731007190790,-500.0,0.0002794,2]
[341581749,1731007190811,-524.7,0.0002794,2]
[341581750,1731007190833,-500.0,0.0002794,2]
[341581751,1731007190855,-1618.89,0.0002794,2]
[341581752,1731007190874,-500.0,0.0002794,2]
[341581753,1731007190899,-500.0,0.0002794,2]
[341581754,1731007190922,-500.0,0.0002794,2]
[341581755,1731007190943,-15038.42,0.0002794,2]
[341581756,1731007190964,-500.0,0.0002794,2]
[341581757,1731007190985,-500.0,0.0002794,2]
[341581758,1731007191007,-308.60911139,0.0002794,2]
[341581759,1731007191028,-151.694087,0.0002794,2]
[341581760,1731007191049,-173.298577,0.0002794,2]
[341581761,1731007191070,-154.133986,0.0002794,2]
[341581762,1731007191090,-500.0,0.0002794,2]
[341581763,1731007191110,-500.0,0.0002794,2]
[341581764,1731007191131,-500.0,0.0002794,2]
[341581765,1731007191152,-500.0,0.00027941,2]
[341581766,1731007191176,-500.0,0.00027941,2]
[341581767,1731007191198,-500.0,0.00027941,2]
[341581768,1731007191220,-500.0,0.00027941,2]
[341581769,1731007191241,-500.0,0.00027941,2]
[341581770,1731007191262,-500.0,0.00027941,2]
[341581771,1731007191283,-1019.3,0.00027941,2]
[341581772,1731007191304,-500.0,0.00027941,2]
[341581773,1731007191324,-504.58955657,0.00027941,2]
[341581774,1731007191346,-500.0,0.00027941,2]
[341581775,1731007191366,-500.0,0.00027941,2]
[341581776,1731007191387,-500.0,0.00027941,2]
[341581777,1731007191411,-500.0,0.00027941,2]
[341581778,1731007191443,-500.0,0.00027941,2]
[341581779,1731007191463,-500.0,0.00027941,2]
[341581780,1731007191485,-500.0,0.00027941,2]
[341581781,1731007191505,-500.0,0.00027941,2]
[341581782,1731007191527,-500.0,0.00027941,2]
[341581783,1731007191548,-700.0,0.00027941,2]
[341581784,1731007191568,-377.95960593,0.00027941,2]
[341581785,1731007191589,-500.0,0.00027941,2]
[341581786,1731007191611,-500.0,0.00027941,2]
[341581787,1731007191632,-1229.17,0.00027941,2]
[341581788,1731007191654,-500.0,0.00027941,2]
[341581789,1731007191686,-500.0,0.00027941,2]
[341581790,1731007191711,-1000.0,0.00027941,2]
[341581791,1731007191732,-500.0,0.00027941,2]
[341581792,1731007191753,-500.0,0.00027941,2]
[341581793,1731007191774,-500.0,0.00027941,2]
[341581794,1731007191797,-1175.66,0.00027941,2]
[341581795,1731007191818,-500.0,0.00027941,2]
[341581796,1731007191839,-500.0,0.00027941,2]
[341581797,1731007191861,-500.0,0.00027941,2]
[341581798,1731007191883,-1206.96,0.00027941,2]
[341581799,1731007191906,-500.0,0.00027941,2]
[341581800,1731007191931,-500.0,0.00027941,2]
[341581801,1731007191952,-500.0,0.00027941,2]
[341581802,1731007191973,-500.0,0.00027941,2]
[341581803,1731007191994,-500.0,0.00027941,2]
[341581804,1731007192015,-500.0,0.00027941,2]
[341581805,1731007192036,-500.0,0.00027941,2]
[341581806,1731007192056,-500.0,0.00027941,2]
[341581807,1731007192076,-500.0,0.00027941,2]
[341581808,1731007192097,-500.0,0.00027941,2]
[341581809,1731007192117,-500.0,0.00027941,2]
[341581810,1731007192138,-501.52405529,0.00027941,2]
[341581811,1731007192158,-500.0,0.00027941,2]
[341581812,1731007192184,-500.0,0.00027941,2]
[341581813,1731007192204,-500.0,0.00027941,2]
[341581814,1731007192225,-500.0,0.00027941,2]
[341581815,1731007192246,-500.0,0.00027941,2]
[341581816,1731007192268,-500.0,0.00027941,2]
[341581817,1731007192288,-500.0,0.00027941,2]
[341581818,1731007192309,-500.0,0.00027941,2]
[341581819,1731007192330,-500.0,0.00027941,2]
[341581820,1731007192351,-500.0,0.00027941,2]
[341581821,1731007192372,-500.0,0.00027941,2]
[341581822,1731007192393,-568.97,0.00027941,2]
[341581823,1731007192417,-500.0,0.00027941,2]
[341581824,1731007192438,-500.0,0.00027941,2]
[341581825,1731007192458,-500.0,0.00027941,2]
[341581826,1731007192479,-500.0,0.00027941,2]
[341581827,1731007192499,-500.0,0.00027941,2]
[341581828,1731007192519,-500.0,0.00027941,2]
[341581829,1731007192541,-500.0,0.00027941,2]
[341581830,1731007192562,-670.36,0.00027941,2]
[341581831,1731007192582,-726.6,0.00027941,2]
[341581832,1731007192602,-500.0,0.00027941,2]
[341581833,1731007192624,-500.0,0.00027941,2]
[341581834,1731007192645,-500.0,0.00027941,2]
[341581835,1731007192667,-500.0,0.00027941,2]
[341581836,1731007192688,-500.0,0.00027941,2]
[341581837,1731007192708,-500.0,0.00027941,2]
[341581838,1731007192731,-500.0,0.00027941,2]
[341581839,1731007192751,-500.0,0.00027941,2]
[341581840,1731007192773,-500.0,0.00027941,2]
[341581841,1731007192794,-500.0,0.00027941,2]
[341581842,1731007192816,-500.0,0.00027941,2]
[341581843,1731007192836,-500.0,0.00027941,2]
[341581844,1731007192857,-500.0,0.00027941,2]
[341581845,1731007192880,-500.0,0.00027941,2]
[341581846,1731007192903,-500.0,0.00027941,2]
[341581847,1731007192928,-263.85350887,0.00027941,2]
[341581848,1731007354408,-823.43773035,0.00025639,2]
[341581849,1731007354430,-175.43,0.00027115,2]
[341581850,1731007354453,-23900.0,0.00027159,2]
[341581851,1731007354476,-200.0,0.0002717,2]
[341581852,1731007354498,-374.28,0.00027184,2]
[341581853,1731007354520,-488.0,0.00027315,2]
[341581854,1731007354541,-2074.49,0.00027319,2]
[341581855,1731007354565,-187.5,0.0002783,10]
[341581856,1731007354588,-156.25,0.0002783,10]
[341581857,1731007354611,-181.11136342,0.00027839,2]
[341581858,1731007354637,-117547.355,0.0002784,2]
[341581859,1731007354662,-4513.59782691,0.00027841,2]
[341581860,1731007354683,-3077.8386,0.00027841,2]
[341581861,1731007354704,-167.68199138,0.00027939,2]
[341581862,1731007354729,-500.0,0.00027939,2]
[341581863,1731007354757,-500.0,0.00027939,2]
[341581864,1731007354782,-500.0,0.00027939,2]
[341581865,1731007354807,-500.0,0.00027939,2]
[341581866,1731007354832,-500.0,0.00027939,2]
[341581867,1731007354857,-500.0,0.00027939,2]
[341581868,1731007354882,-500.0,0.00027939,2]
[341581869,1731007354905,-500.0,0.00027939,2]
[341581870,1731007354928,-500.0,0.00027939,2]
[341581871,1731007354951,-500.0,0.00027939,2]
[341581872,1731007354975,-500.0,0.0002794,2]
[341581873,1731007354997,-1038.24,0.0002794,2]
[341581874,1731007355018,-1261.96,0.0002794,2]
[341581875,1731007355040,-1474.75,0.0002794,2]
[341581876,1731007355065,-1377.77,0.0002794,2]
[341581877,1731007355086,-221.303663,0.0002794,2]
[341581878,1731007355108,-532.52,0.0002794,2]
[341581879,1731007355130,-666.21,0.0002794,2]
[341581880,1731007355155,-500.0,0.0002794,2]
[341581881,1731007355179,-806.06,0.0002794,2]
[341581882,1731007355201,-503.56132103,0.0002794,2]
[341581883,1731007355222,-850.62,0.0002794,2]
[341581884,1731007355243,-500.0,0.0002794,2]
[341581885,1731007355264,-500.0,0.0002794,2]
[341581886,1731007355284,-500.0,0.0002794,2]
[341581887,1731007355309,-500.0,0.0002794,2]
[341581888,1731007355330,-4938.42,0.0002794,2]
[341581889,1731007355351,-731.3,0.0002794,2]
[341581890,1731007355372,-500.0,0.0002794,2]
[341581891,1731007355394,-500.0,0.0002794,2]
[341581892,1731007355414,-514.59128617,0.0002794,2]
[341581893,1731007355434,-500.0,0.0002794,2]
[341581894,1731007355456,-512.21609664,0.0002794,2]
[341581895,1731007355479,-3152.42,0.0002794,2]
[341581896,1731007355500,-680.38,0.0002794,2]
[341581897,1731007355522,-1071.41,0.0002794,2]
[341581898,1731007355544,-965.75,0.0002794,2]
[341581899,1731007355567,-500.0,0.0002794,2]
[341581900,1731007355588,-504.21666294,0.0002794,2]
[341581901,1731007355608,-500.0,0.0002794,2]
[341581902,1731007355630,-628.09,0.0002794,2]
[341581903,1731007355650,-503.59242478,0.0002794,2]
[341581904,1731007355670,-500.0,0.0002794,2]
[341581905,1731007355692,-1117.71,0.0002794,2]
[341581906,1731007355713,-864.52,0.0002794,2]
[341581907,1731007355734,-500.0,0.0002794,2]
[341581908,1731007355760,-500.0,0.0002794,2]
[341581909,1731007355782,-500.0,0.0002794,2]
[341581910,1731007355806,-500.0,0.0002794,2]
[341581911,1731007355828,-500.0,0.0002794,2]
[341581912,1731007355850,-905.85,0.0002794,2]
[341581913,1731007355871,-500.0,0.0002794,2]
[341581914,1731007355893,-500.0,0.0002794,2]
[341581915,1731007355915,-500.0,0.0002794,2]
[341581916,1731007355935,-500.0,0.0002794,2]
[341581917,1731007355957,-1807.14,0.0002794,2]
[341581918,1731007355978,-553.48,0.0002794,2]
[341581919,1731007356000,-500.0,0.0002794,2]
[341581920,1731007356021,-500.0,0.0002794,2]
[341581921,1731007356043,-500.0,0.0002794,2]
[341581922,1731007356071,-738.02,0.0002794,2]
[341581923,1731007356092,-500.0,0.0002794,2]
[341581924,1731007356114,-500.0,0.0002794,2]
[341581925,1731007356135,-701.03,0.0002794,2]
[341581926,1731007356156,-1687.04,0.0002794,2]
[341581927,1731007356178,-500.0,0.0002794,2]
[341581928,1731007356200,-1423.66,0.0002794,2]
[341581929,1731007356221,-1227.01,0.0002794,2]
[341581930,1731007356242,-993.81,0.0002794,2]
[341581931,1731007356262,-500.0,0.0002794,2]
[341581932,1731007356282,-500.0,0.0002794,2]
[341581933,1731007356304,-500.0,0.0002794,2]
[341581934,1731007356324,-2875.28,0.0002794,2]
[341581935,1731007356345,-1493.53,0.0002794,2]
[341581936,1731007356366,-500.0,0.0002794,2]
[341581937,1731007356387,-500.0,0.0002794,2]
[341581938,1731007356409,-724.1,0.0002794,2]
[341581939,1731007356431,-3483.52,0.0002794,2]
[341581940,1731007356452,-500.0,0.0002794,2]
[341581941,1731007356473,-593.88,0.0002794,2]
[341581942,1731007356493,-642.43,0.0002794,2]
[341581943,1731007356513,-500.0,0.0002794,2]
[341581944,1731007356533,-500.0,0.0002794,2]
[341581945,1731007356557,-2059.23,0.0002794,2]
[341581946,1731007356578,-1262.11,0.0002794,2]
[341581947,1731007356599,-553.34,0.0002794,2]
[341581948,1731007356621,-2555.14,0.0002794,2]
[341581949,1731007356645,-2626.42,0.0002794,2]
[341581950,1731007356666,-528.58363598,0.0002794,2]
[341581951,1731007356687,-500.0,0.0002794,2]
[341581952,1731007356708,-1496.69,0.0002794,2]
[341581953,1731007356730,-594.41908806,0.0002794,2]
[341581954,1731007356753,-530.01,0.0002794,2]
[341581955,1731007356775,-2868.97,0.0002794,2]
[341581956,1731007356798,-500.0,0.0002794,2]
[341581957,1731007356821,-575.11,0.0002794,2]
[341581958,1731007356844,-665.9,0.0002794,2]
[341581959,1731007356867,-917.86,0.0002794,2]
[341581960,1731007356888,-500.0,0.0002794,2]
[341581961,1731007356909,-550.32,0.0002794,2]
[341581962,1731007356930,-500.0,0.0002794,2]
[341581963,1731007356951,-500.0,0.0002794,2]
[341581964,1731007356976,-500.0,0.0002794,2]
[341581965,1731007356999,-541.85,0.0002794,2]
[341581966,1731007357023,-8548.53,0.0002794,2]
[341581967,1731007357247,-500.0,0.0002794,2]
[341581968,1731007357269,-1167.08,0.0002794,2]
[341581969,1731007357291,-1336.47,0.0002794,2]
[341581970,1731007357315,-500.0,0.0002794,2]
[341581971,1731007357337,-520.8,0.0002794,2]
[341581972,1731007357359,-500.0,0.0002794,2]
[341581973,1731007357380,-1144.07,0.0002794,2]
[341581974,1731007357402,-1304.64,0.0002794,2]
[341581975,1731007357423,-500.0,0.0002794,2]
[341581976,1731007357444,-880.82,0.0002794,2]
[341581977,1731007357465,-500.0,0.0002794,2]
[341581978,1731007357487,-1278.03,0.0002794,2]
[341581979,1731007357508,-500.0,0.0002794,2]
[341581980,1731007357530,-500.0,0.0002794,2]
[341581981,1731007357554,-903.42,0.0002794,2]
[341581982,1731007357575,-500.0,0.0002794,2]
[341581983,1731007357596,-545.85,0.0002794,2]
[341581984,1731007357618,-967.79,0.0002794,2]